Workbook

Sheet Лист2
A1: Согласовано: | E1: Утверждаю:______________________
A2: Заведующий | E2: Руководитель (ИП)
E3: Шкуропатов П.А.
A6: ДЕСЯТИДНЕВНОЕ МЕНЮ
A7: ДЛЯ ДЕТСКИХ САДОВ (ЯСЛИ)
A8: НА ОСЕННЕ-ЗИМНИЙ ПЕРИОД
A9: НА 2025-2026 год
A10: Наименование блюда | B10: Выход блюда | C10: Пищевые вещества(г) | F10: Энергерическая ценность (ккал) | G10: № рецептуры
C11: Белки | D11: Жиры | E11: Углеводы
A12: ДЕНЬ 1
A13: Завтрак
A14: Суп молочный с крупой (гречка) | B14: 150 | C14: 4.31 | D14: 3.62 | E14: 11.94 | F14: 97.44 | G14: №54-17к
A15: Чай с сахаром | B15: 180 | C15: 0.24 | D15: 0 | E15: 5.88 | F15: 24.12 | G15: №54-2гн
A16: Бутерброд с повидлом 20/5/10 | B16: 35 | C16: 5.02 | D16: 11.76 | E16: 9.85 | F16: 167.7 | G16: Могильный 2017год №2
A17: Всего за завтрак | B17: 365 | C17: 9.57 | D17: 15.38 | E17: 22.67 | F17: 289.26
A18: 2 Завтрак
A19: Фрукты свежие | B19: 100 | C19: 1.4 | D19: 1.3 | E19: 12.1 | F19: 66 | G19: Могильный 2017год
A20: Обед
A21: Щи из свежей капусты с картофелем | B21: 150 | C21: 1.06 | D21: 2.97 | E21: 4.74 | F21: 53.4 | G21: Могильный 2017год№88
A22: Жаркое по-домашнему из курицы | B22: 120 | C22: 14.9 | D22: 3.7 | E22: 10.6 | F22: 135.4 | G22: №54-33м
A23: Салат из моркови отварной с зеленым горошком | B23: 30 | C23: 0.52 | D23: 1.24 | E23: 3.01 | F23: 24.15 | G23: Могильный 2017год№ 45
A24: Хлеб пшеничный | B24: 30 | C24: 2.28 | D24: 0.24 | E24: 14.58 | F24: 71.4 | G24: Могильный
A25: Хлеб ржаной | B25: 20 | C25: 0.98 | D25: 0.2 | E25: 9.2 | F25: 44 | G25: Могильный
A26: Компот из сухофруктов с витамином"С" | B26: 150 | C26: 0.4 | D26: 0 | E26: 14.9 | F26: 60.8 | G26: №54-1хн
A27: Всего за обед | B27: 500 | C27: 20.14 | D27: 8.35 | E27: 57.03 | F27: 389.15
A28: Полдник
A29: Булочка домашняя | B29: 60 | C29: 4.95 | D29: 5.26 | E29: 36.04 | F29: 213.29 | G29: Могильный 2017год№424
A30: Какао с молоком | B30: 150 | C30: 3.5 | D30: 2.7 | E30: 9.5 | F30: 75.3 | G30: №54-21гн
A31: Всего за полдник | B31: 210 | C31: 8.45 | D31: 7.96 | E31: 45.54 | F31: 288.59
A32: Итого за первый день | B32: =B31+B27+B19+B17 -> 1175 | C32: =C31+C27+C19+C17 -> 39.56 | D32: 32.99 | E32: 137.34 | F32: 1033
A34: ДЕНЬ 2
A35: Завтрак
A36: Макароны отварные с сахаром и маслом | B36: 130 | C36: 5.07 | D36: 3.67 | E36: 34.68 | F36: 195.12 | G36: Могильный 2017год№202
A37: Кофейный напиток | B37: 160 | C37: 0 | D37: 0 | E37: 16 | F37: 60.64 | G37: Могильный 2017год№381
A38: Вафли | B38: 60 | C38: 2.04 | D38: 18.12 | E38: 38.82 | F38: 323.4 | G38: Могильный
A39: Всего за завтрак | B39: 350 | C39: 7.11 | D39: 21.79 | E39: 89.5 | F39: 579.16
A40: 2 Завтрак
A41: Сок фруктовый | B41: 100 | C41: 0.45 | D41: 0.3 | E41: 24.45 | F41: 102 | G41: Могильный №389
A42: Обед
A43: Суп картофельный | B43: 150 | C43: 1.41 | D43: 1.7 | E43: 10.12 | F43: 68.4 | G43: Могильный 2017год№97
A44: Капуста тушеная с мясом птицы | B44: 130 | C44: 10.92 | D44: 5.33 | E44: 6.76 | F44: 118.89 | G44: Роспотребнадзор №54-27м
A45: Компот из сушеных фруктов | B45: 150 | C45: 0.4 | D45: 0 | E45: 14.9 | F45: 60.8 | G45: Могильный 2017год№349
A46: Хлеб пшеничный | B46: 30 | C46: 2.28 | D46: 0.24 | E46: 14.58 | F46: 71.4 | G46: Могильный
A47: Хлеб ржаной | B47: 20 | C47: 0.98 | D47: 0.2 | E47: 9.2 | F47: 44 | G47: Могильный
A48: Всего за обед | B48: 480 | C48: 15.7 | D48: 7.48 | E48: 58.98 | F48: 374.69
A49: Полдник
A50: Запеканка из творога с морковью и со сметаной 80/10 | B50: 90 | C50: 8.33 | D50: 7.9 | E50: 26.17 | F50: 209.14 | G50: Могильный 2017год №224
A51: Какао с молоком | B51: 150 | C51: 3.15 | D51: 2.7 | E51: 9.5 | F51: 75.3 | G51: №51-21гн
A52: Всего за полдник | B52: 240 | C52: 11.48 | D52: 10.6 | E52: 35.67 | F52: 284.44
A53: Итого за второй день | B53: =B52+B48+B41+B39 -> 1170 | C53: =C52+C48+C41+C39 -> 34.74 | D53: 40.17 | E53: 208.6 | F53: 1340.29
A54: ДЕНЬ 3
A55: Завтрак
A56: Суп молочный пшенный | B56: 160 | C56: 2.38 | D56: 2.86 | E56: 4.92 | F56: 56.96 | G56: Могильный 2017год №121
A57: Чай с сахаром | B57: 180 | C57: 0.24 | D57: 0 | E57: 5.88 | F57: 24.12 | G57: №54-2гн
A58: Бутерброд с маслом 20/5 | B58: 25 | C58: 1.57 | D58: 7.41 | E58: 9.85 | F58: 113.7 | G58: Могильный 2017год№1
A59: Всего за завтрак | B59: 365 | C59: 4.19 | D59: 10.27 | E59: 20.65 | F59: 194.78
A60: 2 Завтрак
A61: Фрукты свежие | B61: 100 | C61: 1.4 | D61: 1.3 | E61: 12.1 | F61: 66 | G61: Могильный
A62: Обед
A63: Суп гороховый с гренками 150/15 | B63: 165 | C63: 3.29 | D63: 3.16 | E63: 9.92 | F63: 88.95 | G63: Могильный 2017год№102
A64: Рыба тушеная в томате с овощами 50/50 | B64: 100 | C64: 10.37 | D64: 5.74 | E64: 5.36 | F64: 114.49 | G64: Могильный 2017год№229
A65: Картофельное пюре | B65: 110 | C65: 2.27 | D65: 6.72 | E65: 13.19 | F65: 126.77 | G65: Могильный 2017год№128
A66: Компот из свежих плодов | B66: 150 | C66: 0.15 | D66: 0.15 | E66: 16.73 | F66: 82.5 | G66: Могильный 2017год№342
A67: Хлеб пшеничный | B67: 15 | C67: 1.14 | D67: 0.12 | E67: 7.29 | F67: 35.7 | G67: Могильный
A68: Хлеб ржаной | B68: 20 | C68: 0.98 | D68: 0.2 | E68: 9.2 | F68: 44 | G68: Могильный
A69: Всего за обед | B69: 560 | C69: 18.2 | D69: 16.09 | E69: 61.69 | F69: 492.41
A70: Полдник
A71: Оладьи с повидлом 60/10 | B71: 70 | C71: 4.22 | D71: 4.18 | E71: 25.93 | F71: 158.18 | G71: Могильный 2017год№401
A72: Кофейный напиток с молоком | B72: 150 | C72: 2.9 | D72: 2.2 | E72: 8.5 | F72: 64.5 | G72: №54-23гн
A73: Всего за полдник | B73: 220 | C73: 7.12 | D73: 6.38 | E73: 34.43 | F73: 222.68
A74: Итого за третий день | B74: =B73+B69+B61+B59 -> 1245 | C74: =C73+C69+C61+C59 -> 30.91 | D74: 34.04 | E74: 128.87 | F74: 975.87
A75: ДЕНЬ 4
A76: Завтрак
A77: Каша молочная овсяная | B77: 150 | C77: 5.1 | D77: 5.6 | E77: 18.5 | F77: 144.5 | G77: №54-22к
A78: Кофейный напиток | B78: 180 | C78: 0 | D78: 0 | E78: 18 | F78: 68.22 | G78: Могильный 2017год №381
A79: Печенье | B79: 20 | C79: 1.8 | D79: 1.3 | E79: 16 | F79: 109 | G79: Могильный
A80: Всего за завтрак | B80: 350 | C80: 6.9 | D80: 6.9 | E80: 52.5 | F80: 321.72
A81: 2 Завтрак
A82: Фрукты свежие | B82: 100 | C82: 1.4 | D82: 1.3 | E82: 12.1 | F82: 66 | G82: Могильный
A83: Обед
A84: Суп картофельный с макаронными изделиями | B84: 150 | C84: 2.03 | D84: 1.95 | E84: 14.18 | F84: 83.25 | G84: №54-7с
A85: Плов с курицей | B85: 120 | C85: 16.4 | D85: 4.9 | E85: 19.9 | F85: 188.8 | G85: №54-12м
A86: Винегрет овощной | B86: 30 | C86: 0.39 | D86: 1.93 | E86: 3.44 | F86: 32.85 | G86: Могильный 2012 год №45
A87: Кисель из сока фруктового | B87: 150 | C87: 1.04 | D87: 0 | E87: 31.8 | F87: 125.2 | G87: Могильный 2017год №358
A88: Хлеб пшеничный | B88: 30 | C88: 2.28 | D88: 0.24 | E88: 14.58 | F88: 71.4 | G88: Могильный
A89: Хлеб ржаной | B89: 20 | C89: 0.98 | D89: 0.2 | E89: 9.2 | F89: 44 | G89: Могильный
A90: Всего за обед | B90: 500 | C90: 23.12 | D90: 9.22 | E90: 93.1 | F90: 545.5
A91: Полдник
A92: Ватрушка с повидлом | B92: 70 | C92: 4.68 | D92: 4.41 | E92: 41.27 | F92: 222.96 | G92: Кучма 2016 год №537,559
A93: Ряженка | B93: 150 | C93: 2.33 | D93: 4.65 | E93: 3.1 | F93: 65.1 | G93: Могильный 2017год№401
A94: Всего за полдник | B94: 220 | C94: 7.01 | D94: 9.06 | E94: 44.37 | F94: 288.06
A95: Итого за четвертый день | B95: =B94+B90+B82+B80 -> 1170 | C95: =C94+C90+C82+C80 -> 38.43 | D95: 26.48 | E95: 202.07 | F95: 1221.28
A96: ДЕНЬ 5
A97: Завтрак
A98: Суп молочный кукурузный | B98: 160 | C98: 2.38 | D98: 2.86 | E98: 4.92 | F98: 56.96 | G98: Могильный 2017год№121
A99: Кофейный напиток с молоком | B99: 180 | C99: 3.48 | D99: 2.64 | E99: 10.2 | F99: 77.4 | G99: №54-23гн
A100: Бутерброд с маслом 20/5 | B100: 25 | C100: 1.57 | D100: 7.41 | E100: 9.85 | F100: 113.7 | G100: Могильный 2017год№1
A101: Всего за завтрак | B101: 365 | C101: 7.43 | D101: 12.91 | E101: 24.97 | F101: 248.06
A102: 2 Завтрак
A103: Сок фруктовый | B103: 100 | C103: 0.45 | D103: 0.3 | E103: 24.45 | F103: 102 | G103: Могильный 2012год №399
A104: Обед
A105: Борщ с капустой и картофелем 150/5 | B105: 155 | C105: 1.96 | D105: 3.84 | E105: 10.78 | F105: 85.46 | G105: Могильный 2017год №82
A106: Суфле куриное | B106: 50 | C106: 9.43 | D106: 10.13 | E106: 1.75 | F106: 135 | G106: Могильный 2012год№310
A107: Макароны отварные с овощами | B107: 110 | C107: 36.35 | D107: 0.86 | E107: 24.28 | F107: 106.33 | G107: Здобнов 2005 год №47
A108: Компот из сухофруктов с витамином "С" | B108: 150 | C108: 0.4 | D108: 0 | E108: 14.9 | F108: 60.8 | G108: №54-1хн
A109: Хлеб пшеничный | B109: 30 | C109: 2.28 | D109: 0.24 | E109: 14.58 | F109: 71.4 | G109: Могильный
A110: Хлеб ржаной | B110: 20 | C110: 0.98 | D110: 0.2 | E110: 9.2 | F110: 44 | G110: Могильный
A111: Всего за обед | B111: 515 | C111: 51.4 | D111: 15.27 | E111: 75.49 | F111: 502.99
A112: Полдник
A113: Печенье | B113: 50 | C113: 3.6 | D113: 2.6 | E113: 32 | F113: 218 | G113: Могильный 2017год
A114: Чай с лимоном | B114: 150 | C114: 0.2 | D114: 0 | E114: 5 | F114: 20.9 | G114: №54-3гн
A115: Всего за полдник | B115: 200 | C115: 3.8 | D115: 2.6 | E115: 37 | F115: 238.9
A116: Итого за пятый день | B116: =B115+B111+B103+B101 -> 1180 | C116: =C115+C111+C103+C101 -> 63.08 | D116: =D115+D111+D103+D101 -> 31.08 | E116: =E115+E111+E103+E101 -> 161.91 | F116: =F115+F111+F103+F101 -> 1091.95
A117: ДЕНЬ 6
A118: Завтрак
A119: Омлет натуральный | B119: 80 | C119: 7.19 | D119: 12.8 | E119: 1.36 | F119: 149.33 | G119: Могильный 2017год №210
A120: Соленый помидор | B120: 30 | C120: 0.55 | D120: 0.1 | E120: 1.9 | F120: 11 | G120: №54-3з
A121: Чай с сахаром | B121: 180 | C121: 0.24 | D121: 0 | E121: 5.88 | F121: 24.12 | G121: №54-2гн
A122: Хлеб пшеничный | B122: 35 | C122: 2.66 | D122: 0.28 | E122: 17.01 | F122: 83.3 | G122: Могильный
A123: Бутерброд с маслом 20/5 | B123: 25 | C123: 1.57 | D123: 7.41 | E123: 9.85 | F123: 113.7 | G123: Могильный 2017год №1
A124: Всего за завтрак | B124: 350 | C124: 12.21 | D124: 20.59 | E124: 36 | F124: 381.45
A125: 2 Завтрак
A126: Фрукты свежие | B126: 100 | C126: 1.26 | D126: 0.28 | E126: 14.58 | F126: 98 | G126: Могильный
A127: Обед
A128: Суп картофельный с бобовыми (горох) | B128: 150 | C128: 3.29 | D128: 3.16 | E128: 9.92 | F128: 88.95 | G128: Могильный 2017год №102
A129: Суфле рыбное | B129: 50 | C129: 5.3 | D129: 2.35 | E129: 2.25 | F129: 51.85 | G129: №54-8р
A130: Картофельное пюре | B130: 110 | C130: 2.27 | D130: 6.72 | E130: 13.19 | F130: 126.77 | G130: Могильный 2017год№128
A131: Салат "Витаминный" | B131: 30 | C131: 0.35 | D131: 1.71 | E131: 3.06 | F131: 29.2 | G131: Могильный 2012 год
A132: Кисель из сока фруктового | B132: 150 | C132: 1.04 | D132: 0 | E132: 31.8 | F132: 125.2 | G132: Могильный 2017год №358
A133: Хлеб пшеничный | B133: 30 | C133: 2.28 | D133: 0.24 | E133: 14.58 | F133: 71.4 | G133: Могильный
A134: Хлеб ржаной | B134: 20 | C134: 0.98 | D134: 0.2 | E134: 9.2 | F134: 44 | G134: Могильный
A135: Всего за обед | B135: 510 | C135: 15.16 | D135: 12.67 | E135: 80.94 | F135: 508.17
A136: Полдник
A137: Плюшка | B137: 60 | C137: 3.17 | D137: 3.61 | E137: 24.98 | F137: 144.75 | G137: Могильный 2012год №474
A138: Кофейный напиток | B138: 150 | C138: 0 | D138: 0 | E138: 15 | F138: 56.85 | G138: Могильный 2017год№381
A139: Всего за полдник | B139: 210 | C139: 3.17 | D139: 3.61 | E139: 39.98 | F139: 201.6
A140: Итого за шестой день | B140: =B139+B135+B126+B124 -> 1170 | C140: =C139+C135+C126+C124 -> 31.8 | D140: 37.15 | E140: 171.5 | F140: 1189.22
A141: ДЕНЬ 7
A142: Завтрак
A143: Каша жидкая молочная рисовая | B143: 150 | C143: 4 | D143: 4.1 | E143: 21.5 | F143: 138.4 | G143: №54-28к
A144: Чай с лимоном | B144: 150 | C144: 0.2 | D144: 0 | E144: 5 | F144: 20.9 | G144: №54-3гн
A145: Пряники | B145: 50 | C145: 2.4 | D145: 1.4 | E145: 38.9 | F145: 175 | G145: Могильный 2017год
A146: Всего за завтрак | B146: 350 | C146: 6.6 | D146: 5.5 | E146: 65.4 | F146: 334.3
A147: 2 Завтрак
A148: Сок фруктовый | B148: 100 | C148: 0.45 | D148: 0.3 | E148: 24.45 | F148: 102 | G148: Могильный 2012год №399
A149: Обед
A150: Суп картофельный с клецками | B150: 150 | C150: 2.25 | D150: 1.97 | E150: 10.1 | F150: 67.16 | G150: №54-6с
A151: Птица тушеная в соусе с овощами | B151: 120 | C151: 10.45 | D151: 9.25 | E151: 10.32 | F151: 166.4 | G151: Могильный 2017год №292
A152: Компот из сухофруктов с витамином"С" | B152: 180 | C152: 0.48 | D152: 0 | E152: 17.88 | F152: 72.96 | G152: №54-1хн
A153: Хлеб пшеничный | B153: 30 | C153: 2.28 | D153: 0.24 | E153: 14.58 | F153: 71.4 | G153: Могильный
A154: Хлеб ржаной | B154: 20 | C154: 0.98 | D154: 0.2 | E154: 9.2 | F154: 44 | G154: Могильный
A155: Всего за обед | B155: 500 | C155: 16.44 | D155: 11.66 | E155: 62.08 | F155: 421.92
A156: Полдник
A157: Ватрушка с творогом | B157: 55 | C157: 6.76 | D157: 4.02 | E157: 21.4 | F157: 148.13 | G157: Могильный 2017год№410
A158: Какао с молоком | B158: 150 | C158: 3.5 | D158: 2.7 | E158: 9.5 | F158: 75.3 | G158: Могильный 2017год№382
A159: Всего за полдник | B159: 205 | C159: 10.26 | D159: 6.72 | E159: 30.9 | F159: 223.43
A160: Итого за седьмой день | B160: =B159+B155+B148+B146 -> 1155 | C160: =C159+C155+C148+C146 -> 33.75 | D160: =D159+D155+D148+D146 -> 24.18 | E160: =E159+E155+E148+E146 -> 182.83 | F160: =F159+F155+F148+F146 -> 1081.65
A161: ДЕНЬ 8
A162: Завтрак
A163: Суп молочный с макаронными изделиями | B163: 150 | C163: 4.13 | D163: 3.41 | E163: 13.4 | F163: 100.67 | G163: №54-19к
A164: Кофейный напиток с молоком | B164: 180 | C164: 3.48 | D164: 2.64 | E164: 10.2 | F164: 77.4 | G164: №54-23гн
A165: Бутерброд с маслом 20/5 | B165: 25 | C165: 1.57 | D165: 7.41 | E165: 9.85 | F165: 113.7 | G165: Могильный 2017год№1
A166: Всего за завтрак | B166: 355 | C166: 9.18 | D166: 13.46 | E166: 33.45 | F166: 291.77
A167: 2 Завтрак
A168: Фрукты свежие | B168: 100 | C168: 0.75 | D168: 2.25 | E168: 31.5 | F168: 144 | G168: Могильный
A169: Обед
A170: Суп картофельный с крупой | B170: 150 | C170: 1.06 | D170: 1.31 | E170: 9.47 | F170: 49.57 | G170: Могильный 2017год №101
A171: Котлета из курицы | B171: 60 | C171: 11.52 | D171: 2.56 | E171: 8.08 | F171: 101.12 | G171: №54-5м
A172: Картофель отварной | B172: 110 | C172: 2.09 | D172: 3.17 | E172: 16.87 | F172: 104.39 | G172: Могильный 2017год №310
A173: Салат из капусты с морковью | B173: 30 | C173: 0.4 | D173: 2.42 | E173: 2.55 | F173: 32.34 | G173: Азбука питания 2002 год №282
A174: Напиток из лимонов | B174: 150 | C174: 0.11 | D174: 0.01 | E174: 18.32 | F174: 72 | G174: Коровка 2008год№282
A175: Хлеб пшеничный | B175: 30 | C175: 2.28 | D175: 0.24 | E175: 14.58 | F175: 71.4 | G175: Могильный
A176: Хлеб ржаной | B176: 20 | C176: 0.98 | D176: 0.2 | E176: 9.2 | F176: 44 | G176: Могильный
A177: Всего за обед | B177: 550 | C177: 18.44 | D177: 9.91 | E177: 79.07 | F177: 474.82
A178: Полдник
A179: Пирожки с повидлом | B179: 70 | C179: 3.37 | D179: 5.04 | E179: 39.06 | F179: 205.72 | G179: Могильный 2012год№406
A180: Ряженка | B180: 150 | C180: 2.33 | D180: 4.65 | E180: 3.1 | F180: 65.1 | G180: Могильный 2017год№401
A181: Всего за полдник | B181: 220 | C181: 5.7 | D181: 9.69 | E181: 42.16 | F181: 270.82
A182: Итого за восьмой день | B182: =B181+B177+B168+B166 -> 1225 | C182: =C181+C177+C168+C166 -> 34.07 | D182: 35.31 | E182: 186.18 | F182: 1181.41
A183: ДЕНЬ 9
A184: Завтрак
A185: Каша жидкая молочная манная | B185: 150 | C185: 4 | D185: 4.3 | E185: 19 | F185: 130.7 | G185: №54-27к
A186: Чай с сахаром | B186: 180 | C186: 0.24 | D186: 0 | E186: 5.88 | F186: 24.12 | G186: №54-2гн
A187: Бутерброд с повидлом 20/5/10 | B187: 35 | C187: 5.02 | D187: 11.76 | E187: 9.85 | F187: 167.7 | G187: Могильный 2017год№2
A188: Всего за завтрак | B188: 365 | C188: 9.26 | D188: 16.06 | E188: 34.73 | F188: 322.52
A189: 2 Завтрак
A190: Сок фруктовый | B190: 150 | C190: 0.45 | D190: 0.3 | E190: 24.45 | F190: 102 | G190: Могильный
A191: Обед
A192: Суп "Крестьянский" | B192: 150 | C192: 0.89 | D192: 2.95 | E192: 7.93 | F192: 70.65 | G192: Могильный 2017год№98
A193: Курица тушенная с морковью | B193: 60 | C193: 8.46 | D193: 3.42 | E193: 2.64 | F193: 75.84 | G193: №54-25м
A194: Макаронные изделия отварные | B194: 110 | C194: 3.74 | D194: 5.5 | E194: 20.9 | F194: 148.51 | G194: №54-1г
A195: Компот из сухофруктов с витамином"С" | B195: 150 | C195: 0.4 | D195: 0 | E195: 14.9 | F195: 60.8 | G195: №54-1хн
A196: Хлеб пшеничный | B196: 30 | C196: 2.28 | D196: 0.24 | E196: 14.58 | F196: 71.4 | G196: Могильный
A197: Хлеб ржаной | B197: 20 | C197: 0.98 | D197: 0.2 | E197: 9.2 | F197: 44 | G197: Могильный
A198: Всего за обед | B198: 520 | C198: 14.99 | D198: 13.63 | E198: 58.64 | F198: 429.46
A199: Полдник
A200: Булочка домашняя | B200: 60 | C200: 4.95 | D200: 5.26 | E200: 36.04 | F200: 213.29 | G200: Могильный 2017год
A201: Чай с лимоном | B201: 150 | C201: 0.2 | D201: 0 | E201: 5 | F201: 20.9 | G201: №54-2гн
A202: Всего за полдник | B202: 220 | C202: 5.15 | D202: 5.26 | E202: 41.04 | F202: 234.19
A203: Итого за девятый день | B203: =B202+B198+B190+B188 -> 1255 | C203: =C202+C198+C190+C188 -> 29.85 | D203: 35.25 | E203: 158.86 | F203: 1088.17
... 23 more rows

Sheet Лист3
